bitfinex-derivatives/quotes_BTCF0:USTF0_20250510
["timestamp","ask_amount","ask_price","bid_price","bid_amount"]
[1746835203355,0.19808,103020.0,103010.0,1.25569606]
[1746835204050,0.19808,103020.0,103010.0,1.24063838]
[1746835204251,0.16728,103020.0,103010.0,1.24063838]
[1746835204853,0.16728,103020.0,103010.0,1.43478448]
[1746835205354,0.16728,103020.0,103010.0,2.82806448]
[1746835205543,0.16728,103020.0,103010.0,2.83006448]
[1746835205747,0.39728,103020.0,103010.0,2.83006448]
[1746835206053,0.39728,103020.0,103010.0,2.83206448]
[1746835208356,0.39728,103020.0,103010.0,2.60110448]
[1746835208658,0.39728,103020.0,103010.0,2.83258448]
[1746835209556,0.39728,103020.0,103010.0,2.83358448]
[1746835210057,0.39728,103020.0,103010.0,2.83558448]
[1746835211846,0.16728,103020.0,103010.0,2.83558448]
[1746835218758,0.16728,103020.0,103010.0,2.11398448]
[1746835218959,0.16728,103020.0,103010.0,2.83558448]
[1746835219561,0.16728,103020.0,103010.0,2.83258448]
[1746835219765,0.16728,103020.0,103010.0,2.83458448]
[1746835220564,0.16728,103020.0,103010.0,2.83258448]
[1746835223161,0.00728,103020.0,103010.0,2.83258448]
[1746835223664,0.00728,103020.0,103010.0,2.86258448]
[1746835225267,0.17328,103020.0,103010.0,2.86258448]
[1746835226068,0.17328,103020.0,103010.0,2.14098448]
[1746835226268,0.17328,103020.0,103010.0,2.86258448]
[1746835227068,0.00728,103020.0,103010.0,2.86258448]
[1746835228769,0.00728,103020.0,103010.0,2.86458448]
[1746835229169,0.17328,103020.0,103010.0,2.86458448]
[1746835229369,0.17328,103020.0,103010.0,2.86558448]
[1746835230169,0.00728,103020.0,103010.0,2.14398448]
[1746835230372,0.00728,103020.0,103010.0,2.74958448]
[1746835230669,0.00728,103020.0,103010.0,2.86622448]
[1746835231169,0.17328,103020.0,103010.0,2.86622448]
[1746835232067,0.17328,103020.0,103010.0,2.14462448]
[1746835232368,0.17328,103020.0,103010.0,2.86622448]
[1746835237872,0.17328,103020.0,103010.0,2.63410448]
[1746835238071,0.20628,103020.0,103010.0,2.86718448]
[1746835239777,0.20628,103020.0,103010.0,3.01512156]
[1746835243283,0.20628,103020.0,103010.0,3.01312156]
[1746835243577,0.20628,103020.0,103010.0,3.01212156]
[1746835244980,0.20628,103020.0,103010.0,3.01412156]
[1746835245187,0.20628,103020.0,103010.0,3.01512156]
[1746835249776,0.20628,103020.0,103010.0,2.78204156]
[1746835250086,0.25628,103020.0,103010.0,3.01488156]
[1746835250283,0.28768,103020.0,103010.0,3.01488156]
[1746835261493,0.23768,103020.0,103010.0,3.01488156]
[1746835263698,0.20628,103020.0,103010.0,3.01488156]
[1746835265598,0.20628,103020.0,103010.0,2.86572156]
[1746835265900,0.27178,103020.0,103010.0,2.98620156]
[1746835268914,0.27178,103020.0,103010.0,2.99016156]
[1746835269614,0.27178,103020.0,103010.0,2.84222448]
[1746835272005,0.368852,103020.0,103010.0,2.29618448]
[1746835272314,0.368852,103020.0,103010.0,2.77786448]
[1746835273111,0.368852,103020.0,103010.0,2.41306448]
[1746835273410,0.368852,103020.0,103010.0,2.44276448]
[1746835273615,0.368852,103020.0,103010.0,2.44296448]
[1746835273911,0.368852,103020.0,103010.0,2.32188448]
[1746835274216,0.368852,103020.0,103010.0,2.44292448]
[1746835275918,0.27178,103020.0,103010.0,2.44292448]
[1746835276117,0.368852,103020.0,103010.0,2.44292448]
[1746835276720,0.368852,103020.0,103010.0,1.03908448]
[1746835276921,0.368852,103020.0,103010.0,1.15956448]
[1746835276922,0.4677233,103020.0,103010.0,1.15956448]
[1746835278115,0.4677233,103020.0,103010.0,1.03908448]
[1746835278321,0.8385233,103020.0,103010.0,0.30558448]
[1746835278523,1.0885233,103020.0,103010.0,0.30558448]
[1746835278722,0.8385233,103020.0,103010.0,0.68558448]
[1746835279525,0.8395233,103020.0,103010.0,0.68558448]
[1746835279817,0.8395233,103020.0,103010.0,0.30558448]
[1746835280121,1.0356506,103020.0,103010.0,0.30558448]
[1746835280722,1.3656506,103020.0,103010.0,0.30558448]
[1746835283725,1.3656506,103020.0,103010.0,0.20850182]
[1746835285429,1.3656506,103020.0,103010.0,0.1941461]
[1746835289526,1.3905838,103020.0,103010.0,0.1941461]
[1746835291129,1.2935118,103020.0,103010.0,0.1941461]
[1746835291328,1.3905838,103020.0,103010.0,0.1941461]
[1746835292432,1.2935118,103020.0,103010.0,0.1941461]
[1746835292730,1.3905838,103020.0,103010.0,0.1941461]
[1746835292930,1.3905838,103020.0,103010.0,0.2272461]
[1746835293234,1.2667793,103020.0,103010.0,0.2272461]
[1746835294435,1.2667793,103020.0,103010.0,0.2417513]
[1746835296335,1.2667793,103020.0,103010.0,0.2272461]
[1746835296836,1.3347193,103020.0,103010.0,0.2272461]
[1746835297030,1.43329318,103020.0,103010.0,0.2272461]
[1746835297331,1.23916588,103020.0,103010.0,0.2272461]
[1746835297533,0.78259388,103020.0,103010.0,0.69561934]
[1746835297838,8e-08,103030.0,103020.0,0.1941273]
[1746835298033,7e-08,103040.0,103030.0,0.1941085]
[1746835298239,7e-08,103040.0,103030.0,1.1173885]
[1746835298432,7e-08,103040.0,103030.0,1.45745231]
[1746835298640,7e-08,103050.0,103040.0,0.1870896]
[1746835298933,7e-08,103050.0,103040.0,1.0026896]
[1746835299133,0.16600007,103050.0,103040.0,1.0026896]
[1746835299435,0.16600007,103050.0,103040.0,1.09273458]
[1746835300931,0.16600007,103050.0,103040.0,1.09073458]
[1746835301539,0.16600007,103050.0,103040.0,1.09373458]
[1746835301836,0.16600007,103050.0,103040.0,1.09673458]
[1746835302039,0.16600007,103050.0,103040.0,1.09573458]
[1746835302439,0.16600007,103050.0,103040.0,1.09373458]
[1746835303434,0.16600007,103050.0,103040.0,1.08373458]
[1746835309247,0.16600007,103050.0,103040.0,1.21133458]
[1746835309544,0.166,103050.0,103040.0,1.21133458]
[1746835313245,0.45489,103060.0,103050.0,0.1940708]
[1746835313447,0.45489,103060.0,103050.0,0.5874708]
[1746835313639,0.45064,103060.0,103050.0,0.5874708]
[1746835313839,0.45064,103060.0,103050.0,0.68451578]
[1746835314240,0.61169,103060.0,103050.0,0.68451578]
[1746835314948,0.61169,103060.0,103050.0,0.68851578]
[1746835315647,0.61169,103060.0,103050.0,0.68651578]
[1746835316251,0.805742,103060.0,103050.0,0.68651578]
[1746835316547,0.728122,103060.0,103050.0,0.68651578]
[1746835316751,0.728122,103060.0,103050.0,0.68451578]
[1746835322152,0.53407,103060.0,103050.0,0.68451578]
[1746835322346,0.728122,103060.0,103050.0,0.68451578]
[1746835326160,0.80201598,103060.0,103050.0,0.68451578]
[1746835328359,0.83211598,103060.0,103050.0,0.68451578]
[1746835328566,0.83211598,103060.0,103050.0,0.46451578]
[1746835328752,0.86311598,103060.0,103050.0,0.46451578]
[1746835328949,0.86311598,103060.0,103050.0,0.73451578]
[1746835329662,0.89621598,103060.0,103050.0,0.73451578]
[1746835329863,0.89621598,103060.0,103050.0,0.73651578]
[1746835330157,0.98617668,103060.0,103050.0,0.73651578]
[1746835330365,0.98617668,103060.0,103050.0,0.73851578]
[1746835330762,0.98617668,103060.0,103050.0,0.35851578]
[1746835330961,0.98617668,103060.0,103050.0,0.44851578]
[1746835331263,0.98617668,103060.0,103050.0,0.42851578]
[1746835331561,1.27617668,103060.0,103050.0,0.35851578]
[1746835332464,1.27617668,103060.0,103050.0,0.68851578]
[1746835333966,1.2998382,103060.0,103050.0,0.68851578]
[1746835334866,1.2998382,103060.0,103050.0,0.71851578]
[1746835335067,1.2998382,103060.0,103050.0,0.35851578]
[1746835335365,1.2998382,103060.0,103050.0,0.48607578]
[1746835336168,1.2998382,103060.0,103050.0,0.48407578]
[1746835336368,1.2998382,103060.0,103050.0,0.48207578]
[1746835338074,1.2998382,103060.0,103050.0,0.32221578]
[1746835338763,1.15243113,103060.0,103050.0,0.35271578]
[1746835340969,0.66837913,103060.0,103050.0,0.71271578]
[1746835341165,0.67837913,103060.0,103050.0,0.71271578]
[1746835341365,0.86243113,103060.0,103050.0,0.74391578]
[1746835341569,0.86243113,103060.0,103050.0,0.83855578]
[1746835341765,0.86243113,103060.0,103050.0,0.5234262]
[1746835342070,0.86243113,103060.0,103050.0,0.8134262]
[1746835342271,0.86243113,103060.0,103050.0,0.8154262]
[1746835342475,0.86243113,103060.0,103050.0,0.5154262]
[1746835342770,0.86243113,103060.0,103050.0,0.8354262]
[1746835343270,0.86243113,103060.0,103050.0,0.8374262]
[1746835343472,0.86243113,103060.0,103050.0,0.83744202]
[1746835343774,1.0098382,103060.0,103050.0,0.83744202]
[1746835343964,1.0098382,103060.0,103050.0,0.51744202]
[1746835344264,1.0098382,103060.0,103050.0,0.86744202]
[1746835345478,1.0025682,103060.0,103050.0,0.86744202]
[1746835348475,0.97889331,103060.0,103050.0,0.86744202]
[1746835349575,0.97889331,103060.0,103050.0,0.86743798]
[1746835349776,1.06616331,103060.0,103050.0,0.49743798]
[1746835350377,1.14378331,103060.0,103050.0,0.86743798]
[1746835351078,1.14378331,103060.0,103050.0,0.85255578]
[1746835351472,1.14378331,103060.0,103050.0,0.13214498]
[1746835351473,1.06378331,103060.0,103050.0,0.13214498]
[1746835351678,1.44378331,103060.0,103050.0,0.32621578]
[1746835353179,1.44378331,103060.0,103050.0,0.35931578]
[1746835355283,1.44378331,103060.0,103050.0,0.66931578]
[1746835355578,1.11068331,103060.0,103050.0,0.66931578]
[1746835355778,0.80563131,103060.0,103050.0,0.71518787]
[1746835355984,0.77553131,103060.0,103050.0,0.71518787]
[1746835356174,0.60953131,103060.0,103050.0,0.88118787]
[1746835356579,0.6332062,103060.0,103050.0,0.88118683]
[1746835356776,0.6332062,103060.0,103050.0,0.88118684]
[1746835356972,0.6332062,103060.0,103050.0,0.86631578]
[1746835357176,0.6332062,103060.0,103050.0,0.71518733]
[1746835357378,0.6332062,103060.0,103050.0,0.715187]
[1746835358681,0.2724062,103060.0,103050.0,1.07598611]
[1746835359178,0.2724062,103060.0,103050.0,1.24198611]
[1746835359685,0.2724062,103060.0,103050.0,1.24198002]
[1746835360087,0.4384062,103060.0,103050.0,1.07598002]
[1746835360490,0.34980848,103060.0,103050.0,1.07598002]
[1746835360786,0.35474848,103060.0,103050.0,1.07598002]
[1746835361487,0.35474848,103060.0,103050.0,1.07598029]
[1746835364886,0.35474848,103060.0,103050.0,1.06111578]
[1746835365083,0.35474848,103060.0,103050.0,1.07597453]
[1746835365385,0.32996722,103060.0,103050.0,1.07597453]
[1746835366287,0.25234722,103060.0,103050.0,1.07597453]
[1746835369089,0.32996722,103060.0,103050.0,1.07597453]
[1746835369989,0.33421722,103060.0,103050.0,1.07597453]
[1746835371793,0.33421722,103060.0,103050.0,1.0759765]
[1746835372694,0.33421722,103060.0,103050.0,1.07597607]
[1746835376791,0.33421722,103060.0,103050.0,1.07397607]
[1746835377092,0.33421722,103060.0,103050.0,1.07797607]
[1746835377496,0.33421722,103060.0,103050.0,1.07991687]
[1746835378592,0.36751722,103060.0,103050.0,1.20455687]
[1746835378893,0.39921722,103060.0,103050.0,1.20455687]
[1746835379693,0.39921722,103060.0,103050.0,1.33015692]
[1746835379895,0.39921722,103060.0,103050.0,1.31529658]
[1746835380196,0.39921722,103060.0,103050.0,1.33011772]
[1746835380387,0.39921722,103060.0,103050.0,1.31525658]
[1746835380588,0.39921722,103060.0,103050.0,1.33011826]
[1746835381595,0.43231722,103060.0,103050.0,1.33011826]
[1746835381787,0.43231722,103060.0,103050.0,1.33011822]
[1746835384891,0.43231722,103060.0,103050.0,1.32811822]
[1746835385195,0.43331722,103060.0,103050.0,1.32411822]
[1746835385398,0.40021722,103060.0,103050.0,1.32511822]
[1746835386496,0.40021722,103060.0,103050.0,1.32507978]
[1746835388397,0.33521722,103060.0,103050.0,1.32507978]
[1746835388597,0.30316912,103060.0,103050.0,1.32507978]
[1746835388793,0.01738272,103060.0,103050.0,1.32507978]
[1746835388999,0.12364811,103070.0,103060.0,0.194052]
[1746835389199,0.28964811,103070.0,103060.0,0.6562752]
[1746835389597,0.28964811,103070.0,103060.0,0.75330134]
[1746835389995,0.28964811,103070.0,103060.0,0.75330147]
[1746835390701,0.29164811,103070.0,103060.0,0.75330147]
[1746835391093,0.28964811,103070.0,103060.0,0.75330147]
[1746835391387,0.29164811,103070.0,103060.0,0.75330147]
[1746835392000,0.29064811,103070.0,103060.0,0.75430147]
[1746835392601,0.28964811,103070.0,103060.0,0.75430147]
[1746835392901,0.166,103070.0,103060.0,0.75630147]
[1746835395098,0.166,103070.0,103060.0,0.74147814]
[1746835395304,0.166,103070.0,103060.0,0.75629568]
[1746835396806,0.166,103070.0,103060.0,0.74147814]
[1746835397107,0.166,103070.0,103060.0,0.75629409]
[1746835402107,0.166,103070.0,103060.0,0.75629303]
[1746835411418,0.138769,103070.0,103060.0,0.75629303]
[1746835411912,0.138769,103070.0,103060.0,1.11709303]
[1746835412304,0.138769,103070.0,103060.0,1.11709883]
[1746835413915,0.138769,103070.0,103060.0,1.1170972]
[1746835414307,0.13491811,103080.0,103070.0,0.1940331]
[1746835414614,0.13491811,103080.0,103070.0,1.27279216]
[1746835415007,0.13491811,103080.0,103070.0,1.3698183]
[1746835415210,0.30091811,103080.0,103070.0,1.3698183]
[1746835416517,0.30091811,103080.0,103070.0,1.3840903]
[1746835416707,0.20797,103080.0,103070.0,1.3840903]
[1746835417315,0.20797,103080.0,103070.0,1.3850903]
[1746835417821,0.20797,103080.0,103070.0,1.3860903]
[1746835418715,0.17727,103080.0,103070.0,1.3860903]
[1746835418909,0.17727,103080.0,103070.0,1.38608929]
[1746835420917,1e-07,103080.0,103070.0,1.38608929]
[1746835421112,0.04661,103090.0,103080.0,0.1940143]
[1746835421309,0.04661,103090.0,103080.0,0.99243235]
[1746835421712,0.04661,103090.0,103080.0,1.08943967]
[1746835422214,0.21261,103090.0,103080.0,1.08943967]
[1746835423921,0.24311,103090.0,103080.0,1.09043967]
[1746835424822,0.24311,103090.0,103080.0,1.09042853]
[1746835425019,0.24311,103090.0,103080.0,1.09142853]
[1746835425417,0.24311,103090.0,103080.0,1.09142855]
[1746835428124,0.24311,103090.0,103080.0,1.09142604]
[1746835429617,0.24311,103090.0,103080.0,1.09336628]
[1746835433324,0.21261,103090.0,103080.0,1.0933679]
[1746835434923,0.57341,103090.0,103080.0,0.7017679]
[1746835435227,0.87521,103090.0,103080.0,0.4859679]
[1746835435430,0.87521,103090.0,103080.0,0.4659679]
[1746835435625,0.87521,103090.0,103080.0,0.8159679]
[1746835435829,0.87521,103090.0,103080.0,0.4659679]
[1746835436228,0.87521,103090.0,103080.0,0.3399679]
[1746835436425,0.87521,103090.0,103080.0,0.9119679]
[1746835436624,0.87521,103090.0,103080.0,0.5919679]
[1746835436822,0.87521,103090.0,103080.0,0.5909679]
[1746835437830,0.87521,103090.0,103080.0,0.5899679]
[1746835438331,0.63521,103090.0,103080.0,0.5899679]
[1746835439221,0.63521,103090.0,103080.0,0.9599679]
[1746835439418,0.63521,103090.0,103080.0,0.9900679]
[1746835440217,0.63521,103090.0,103080.0,0.99008266]
[1746835441330,0.63521,103090.0,103080.0,0.99008943]
[1746835444530,0.63521,103090.0,103080.0,0.97526186]
[1746835446132,0.63521,103090.0,103080.0,0.99009106]
[1746835446334,0.75862808,103090.0,103080.0,0.99009106]
[1746835446738,0.75862808,103090.0,103080.0,0.97526186]
[1746835448330,0.69682808,103090.0,103080.0,0.97526186]
[1746835448526,0.69682808,103090.0,103080.0,1.00856186]
[1746835448727,0.18781358,103090.0,103080.0,1.36936186]
[1746835449041,0.01633758,103090.0,103080.0,1.36936186]
[1746835449241,0.18233758,103090.0,103080.0,1.36936186]
[1746835449641,0.15744148,103090.0,103080.0,1.36936186]
[1746835450540,0.13307228,103090.0,103080.0,1.37036186]
[1746835450735,8e-08,103090.0,103080.0,1.37036186]
[1746835450936,0.20460867,103100.0,103090.0,0.1939955]
[1746835451244,0.24905647,103100.0,103090.0,1.0196955]
[1746835451741,0.24905647,103100.0,103090.0,1.11670282]
[1746835452144,0.21060787,103100.0,103090.0,1.11670282]
[1746835452345,0.0822008,103110.0,103100.0,0.1939767]
[1746835452541,0.0368307,103110.0,103100.0,0.6600167]
[1746835452734,0.23628531,103130.0,103120.0,0.193939]
[1746835452939,0.26728531,103130.0,103120.0,0.669939]
[1746835453134,0.43328531,103130.0,103120.0,0.429939]
[1746835453336,0.43328531,103130.0,103120.0,0.649939]
[1746835453537,0.40228531,103130.0,103120.0,0.7469275]
[1746835453843,0.2295,103130.0,103120.0,0.8778475]
[1746835454639,0.2295,103130.0,103120.0,0.8788475]
[1746835455037,0.2295,103130.0,103120.0,0.8798475]
[1746835455447,0.2295,103130.0,103120.0,0.9405475]
[1746835455639,0.262,103130.0,103120.0,0.9405475]
[1746835455840,0.262,103130.0,103120.0,0.8126275]
[1746835456041,0.312,103130.0,103120.0,0.9543075]
[1746835456248,0.262,103130.0,103120.0,0.6147075]
[1746835456551,0.272,103130.0,103120.0,0.9647075]
[1746835456848,0.2295,103130.0,103120.0,0.9647075]
[1746835457051,0.2295,103130.0,103120.0,0.7247075]
[1746835457244,0.2295,103130.0,103120.0,0.9947075]
[1746835462249,0.5903,103130.0,103120.0,0.6119275]
[1746835462455,0.6909,103130.0,103120.0,0.7427675]
[1746835462760,0.6209,103130.0,103120.0,0.5527675]
[1746835462955,0.9509,103130.0,103120.0,0.5848675]
[1746835463146,0.9709,103130.0,103120.0,0.5848675]
[1746835463453,0.9709,103130.0,103120.0,0.5828675]
[1746835463655,0.9709,103130.0,103120.0,0.5818675]
[1746835463846,0.7109,103130.0,103120.0,0.5818675]
[1746835464042,0.9709,103130.0,103120.0,0.5818675]
[1746835464247,0.9709,103130.0,103120.0,0.5869075]
[1746835464761,0.6809,103130.0,103120.0,0.5869075]
[1746835465057,1.0009,103130.0,103120.0,0.5869075]
[1746835465647,0.6609,103130.0,103120.0,0.9669075]
[1746835465852,0.6209,103130.0,103120.0,0.9983075]
[1746835466050,0.166,103130.0,103120.0,1.3591075]
[1746835466255,0.0144554,103130.0,103120.0,1.3591075]
[1746835466452,1e-07,103130.0,103120.0,1.3591075]
[1746835470148,1e-07,103130.0,103120.0,1.36104698]
[1746835473252,1e-07,103130.0,103120.0,1.32741498]
[1746835473457,0.0304,103150.0,103140.0,0.1939014]
[1746835473758,0.48993318,103160.0,103150.0,0.1938826]
[1746835473956,0.52303318,103160.0,103150.0,0.63241999]
[1746835474164,0.68903318,103160.0,103150.0,0.66451999]
[1746835474359,0.0484782,103140.0,103120.0,0.10235938]
[1746835474656,0.5868202,103130.0,103120.0,0.34038579]
[1746835474855,0.8906202,103130.0,103120.0,0.33938579]
[1746835475162,0.8906202,103130.0,103120.0,0.38938579]
[1746835475163,0.729668,103130.0,103120.0,0.38938579]
[1746835475362,0.6327,103130.0,103120.0,0.33938579]
[1746835475562,0.8266202,103130.0,103120.0,0.33938579]
[1746835475762,0.6227,103130.0,103120.0,0.33938579]
[1746835475963,0.6227,103130.0,103120.0,0.354158]
[1746835476963,0.6227,103130.0,103120.0,0.385758]
[1746835477555,0.6227,103130.0,103120.0,0.475758]
[1746835477957,0.6237,103130.0,103120.0,0.475758]
[1746835480567,0.72213318,103130.0,103120.0,0.475758]
[1746835481867,0.6237,103130.0,103120.0,0.475758]
[1746835482167,0.6237,103130.0,103120.0,0.507658]
[1746835482766,0.6237,103130.0,103120.0,0.727658]
[1746835483064,0.6237,103130.0,103120.0,0.757958]
[1746835483666,0.593,103130.0,103120.0,0.757958]
[1746835483871,0.5609,103130.0,103120.0,0.757958]
[1746835484168,0.5609,103130.0,103120.0,0.759958]
[1746835484468,0.1991,103130.0,103120.0,0.760958]
[1746835485056,0.1401484,103130.0,103120.0,0.758958]
[1746835485275,0.1401484,103130.0,103120.0,1.119758]
[1746835485957,0.1401484,103130.0,103120.0,1.118758]
[1746835486663,0.1401484,103130.0,103120.0,1.119758]
[1746835487056,0.1401484,103130.0,103120.0,1.120758]
[1746835487261,0.1401484,103130.0,103120.0,1.123758]
[1746835487466,0.1010516,103130.0,103120.0,1.123758]
[1746835487662,0.00727,103140.0,103130.0,0.1939202]
[1746835487867,0.00727,103140.0,103130.0,1.0963802]
[1746835488174,0.17327,103140.0,103130.0,1.0963802]
[1746835488369,0.17327,103140.0,103130.0,1.32314989]
[1746835488567,0.17327,103140.0,103130.0,1.19334989]
[1746835488870,0.17327,103140.0,103130.0,1.19534989]
[1746835489174,0.17327,103140.0,103130.0,1.32502989]
[1746835489469,0.17327,103140.0,103130.0,1.32498989]
[1746835489670,0.17327,103140.0,103130.0,1.32598989]
[1746835489867,0.17327,103140.0,103130.0,1.19634989]
[1746835490070,0.29666637,103140.0,103130.0,1.32586989]
[1746835490372,1.25856637,103140.0,103130.0,0.45244989]
[1746835490560,1.32326637,103140.0,103130.0,0.45444989]
[1746835491975,1.32326637,103140.0,103130.0,0.45144989]
[1746835492273,1.32326637,103140.0,103130.0,0.32168989]
[1746835492467,1.32326637,103140.0,103130.0,0.45144989]
[1746835493674,1.19987,103140.0,103130.0,0.45144989]
[1746835494273,0.99987,103140.0,103130.0,0.45144989]
[1746835497473,0.27827,103140.0,103130.0,0.83144989]
[1746835497674,0.23637,103140.0,103130.0,0.86424989]
[1746835497974,0.20357,103140.0,103130.0,0.86424989]
[1746835498175,0.1489962,103140.0,103130.0,1.35428989]
[1746835499176,0.1489962,103140.0,103130.0,1.35528989]
[1746835499767,0.1489962,103140.0,103130.0,1.35728989]
[1746835500371,0.1818962,103140.0,103130.0,1.35728989]
[1746835500571,0.2118962,103140.0,103130.0,1.35728989]
[1746835502674,0.1818962,103140.0,103130.0,1.35728989]
[1746835504673,0.5426962,103140.0,103130.0,0.70468989]
[1746835504870,0.9458962,103140.0,103130.0,0.45440989]
[1746835505070,0.8797976,103140.0,103130.0,0.48510989]
[1746835505278,0.8797976,103140.0,103130.0,0.48492277]
[1746835506172,0.8797976,103140.0,103130.0,0.84492277]
[1746835507279,0.5189976,103140.0,103130.0,0.84492277]
[1746835507479,0.8797976,103140.0,103130.0,0.84492277]
[1746835511082,0.95381007,103140.0,103130.0,0.84492277]
[1746835511983,0.95381007,103140.0,103130.0,0.48492277]
[1746835512285,0.95381007,103140.0,103130.0,0.80975592]
[1746835513577,0.30300867,103140.0,103130.0,0.80975592]
[1746835513784,0.32163475,103140.0,103130.0,1.17055592]
[1746835513986,0.35173475,103140.0,103130.0,1.17055592]
[1746835515287,0.35173475,103140.0,103130.0,1.17054488]
[1746835516883,0.35173475,103140.0,103130.0,1.17054447]
[1746835517082,0.35173475,103140.0,103130.0,1.15572277]
[1746835517982,0.35173475,103140.0,103130.0,1.17054446]
[1746835518779,0.54563615,103140.0,103130.0,0.68002446]
[1746835518985,0.90643615,103140.0,103130.0,0.93722515]
[1746835519284,0.93853615,103140.0,103130.0,0.93722515]
[1746835519484,0.93853615,103140.0,103130.0,0.99722515]
[1746835520883,0.93853615,103140.0,103130.0,0.49874662]
[1746835521084,0.97053615,103140.0,103130.0,0.62734683]
[1746835522084,0.97053615,103140.0,103130.0,0.37002683]
[1746835522287,0.97053615,103140.0,103130.0,0.49874683]
[1746835522480,0.97053615,103140.0,103130.0,0.49874716]
[1746835522680,0.97053615,103140.0,103130.0,0.49874722]
[1746835523180,1.31053615,103140.0,103130.0,0.09996969]
[1746835523379,1.40749615,103140.0,103130.0,0.003]
[1746835523583,1.31053615,103140.0,103130.0,0.003]
[1746835523785,1.31053615,103140.0,103130.0,0.1969202]
[1746835524173,1.31053615,103140.0,103130.0,0.003]
[1746835524378,1.40749615,103140.0,103130.0,0.003]
[1746835524574,1.31053615,103140.0,103130.0,0.003]
[1746835524979,1.23652368,103140.0,103130.0,0.003]
[1746835525188,1.33348368,103140.0,103130.0,0.003]
[1746835525391,1.58348368,103140.0,103130.0,0.003]
[1746835525587,1.33348368,103140.0,103130.0,0.003]
[1746835526888,0.1939579,103110.0,103100.0,1.66306633]
[1746835527077,0.7207579,103110.0,103100.0,2.22336707]
[1746835527281,0.8167579,103110.0,103100.0,2.30552662]
[1746835527587,0.7845579,103110.0,103100.0,2.31993541]
[1746835527988,0.7519579,103110.0,103100.0,2.33472812]
[1746835528288,0.7519579,103110.0,103100.0,2.32293541]
[1746835528489,0.7519579,103110.0,103100.0,2.34072339]
[1746835528989,0.7519579,103110.0,103100.0,2.32593541]
[1746835529183,0.7519579,103110.0,103100.0,2.19133541]
[1746835529383,0.7519579,103110.0,103100.0,2.32593541]
[1746835529888,0.7519579,103110.0,103100.0,2.34072356]
[1746835530087,0.2400015,103110.0,103100.0,2.19332643]
[1746835531689,0.2400015,103110.0,103100.0,2.17853828]
[1746835532585,0.2400015,103110.0,103100.0,2.55411924]
[1746835533390,0.2400015,103110.0,103100.0,2.69235924]
[1746835534990,0.2400015,103110.0,103100.0,2.69235714]
[1746835536284,0.2400015,103110.0,103100.0,2.78934513]
[1746835536790,0.2400015,103110.0,103100.0,2.78934539]
[1746835536991,0.1952934,103110.0,103100.0,2.78934539]
[1746835537194,0.1393883,103110.0,103100.0,2.78934539]
[1746835537382,0.04587568,103120.0,103110.0,0.1939579]
[1746835537591,0.02080218,103120.0,103110.0,1.01313702]
[1746835538088,0.02080218,103120.0,103110.0,1.11011612]
[1746835538290,0.18680218,103120.0,103110.0,1.11011612]
[1746835538491,0.18680218,103120.0,103110.0,1.11111612]
[1746835538881,0.18680218,103120.0,103110.0,1.11211612]
[1746835539087,0.166,103120.0,103110.0,1.11211612]
[1746835539798,0.1228121,103120.0,103110.0,1.11211612]
[1746835540092,0.02080218,103130.0,103120.0,0.193939]
[1746835540286,0.02080218,103130.0,103120.0,1.15085688]
[1746835540687,0.02080218,103130.0,103120.0,1.24783598]
[1746835541087,0.18680218,103130.0,103120.0,1.24783598]
[1746835541289,0.18680218,103130.0,103120.0,1.25083598]
[1746835541994,0.18680218,103130.0,103120.0,1.25383598]
[1746835542388,0.18680218,103130.0,103120.0,1.25383415]
[1746835542587,0.166,103130.0,103120.0,1.253834]
[1746835542791,0.166,103130.0,103120.0,1.3911935]
[1746835542989,0.166,103130.0,103120.0,1.3911535]
[1746835543190,0.166,103130.0,103120.0,1.2538335]
[1746835543393,0.166,103130.0,103120.0,1.39115353]
[1746835544497,0.166,103130.0,103120.0,1.39103353]
[1746835545689,0.166,103130.0,103120.0,1.39103457]
[1746835547097,0.166,103130.0,103120.0,1.39103456]
[1746835549999,0.166,103130.0,103120.0,1.25383456]
[1746835550192,0.1982,103130.0,103120.0,1.39123456]
[1746835550388,0.1982,103130.0,103120.0,1.39123454]
[1746835555506,0.1982,103130.0,103120.0,1.39123543]
[1746835555701,0.166,103130.0,103120.0,1.39123543]
[1746835557206,0.166,103130.0,103120.0,1.3764581]
[1746835557510,0.1987,103130.0,103120.0,1.39124041]
[1746835559008,0.1987,103130.0,103120.0,1.39124493]
[1746835559911,0.20597,103130.0,103120.0,1.39124493]
[1746835560104,0.23917,103130.0,103120.0,1.39124493]
[1746835560308,0.23917,103130.0,103120.0,1.39120493]
[1746835560608,0.23917,103130.0,103120.0,1.39120964]
[1746835562112,0.23917,103130.0,103120.0,1.39121689]
[1746835567115,0.17327,103130.0,103120.0,1.39027824]
[1746835567813,0.17327,103130.0,103120.0,1.39028262]
[1746835568003,0.17327,103130.0,103120.0,1.39028301]
[1746835568206,0.1120759,103130.0,103120.0,1.39028301]
[1746835568405,0.0311,103140.0,103130.0,0.1939202]
[1746835568714,0.0311,103140.0,103130.0,1.00344504]
[1746835569104,0.1971,103140.0,103130.0,1.10041473]
[1746835569703,0.1971,103140.0,103130.0,1.10141473]
[1746835569905,0.1971,103140.0,103130.0,1.10241473]
[1746835576914,0.1971,103140.0,103130.0,0.74161473]
[1746835577121,1.1132014,103140.0,103130.0,0.84837473]
[1746835577316,0.9193,103140.0,103130.0,0.84837473]
[1746835577613,0.7093,103140.0,103130.0,0.84837473]
[1746835577814,0.9032014,103140.0,103130.0,0.84836666]
[1746835578014,0.9032014,103140.0,103130.0,0.98524666]
[1746835579418,1.06656018,103140.0,103130.0,0.98524641]
[1746835580914,0.87265878,103140.0,103130.0,0.98524641]
[1746835581419,0.87265878,103140.0,103130.0,1.01714602]
[1746835582318,0.94656018,103140.0,103130.0,1.01714602]
[1746835582804,0.75265878,103140.0,103130.0,1.01714602]
[1746835584316,0.39185878,103140.0,103130.0,1.37794602]
[1746835586415,0.39185878,103140.0,103130.0,1.37794561]
[1746835587921,0.39185878,103140.0,103130.0,1.38158561]
[1746835591737,0.39185878,103140.0,103130.0,1.41458561]
[1746835594033,0.3203826,103140.0,103130.0,1.27562561]
[1746835594225,0.2892826,103140.0,103130.0,1.77406561]
[1746835594936,0.3201826,103140.0,103130.0,1.77206561]
[1746835595136,0.3201826,103140.0,103130.0,1.76124989]
[1746835595439,0.3201826,103140.0,103130.0,1.77618457]
[1746835595734,0.3201826,103140.0,103130.0,1.77610471]
[1746835596030,0.3201826,103140.0,103130.0,1.75928989]
[1746835596238,0.3201826,103140.0,103130.0,1.77798467]
[1746835596433,0.3201826,103140.0,103130.0,1.77594481]
[1746835596631,0.3201826,103140.0,103130.0,1.77990481]
[1746835596936,0.3201826,103140.0,103130.0,1.77990428]